[Event "US Masters 2024"]
[Site "Charlotte"]
[Date "2024.11.30"]
[Round "5.8"]
[White "Preotu, Razvan"]
[Black "Woodward, Andy"]
[Result "0-1"]
[ECO "A17"]
[WhiteElo "2475"]
[BlackElo "2525"]
[Annotator "RC"]
[PlyCount "68"]
[EventDate "2024.09.23"]
[EventType "swiss"]
[EventCountry "USA"]
[SourceTitle "playchess.com"]
[Source "ChessBase"]
[SourceQuality "1"]
[TimeControl "5400+30"]

1. Nf3 {[%emt 0:00:07]} d5 {[%emt 0:01:10]} 2. e3 {[%emt 0:00:14]} Nf6 {[%emt 0:00:34]} 3. c4 {[%emt 0:00:07]} e6 {[%emt 0:00:09]} 4. Nc3 {[%emt 0:00:14]} b6 {[%emt 0:01:23]} 5. cxd5 {[%emt 0:00:15]} exd5 {[%emt 0:00:12]} 6. b4 {[%emt 0:00:15]} a6 {[%emt 0:05:51]} 7. Bb2 {[%emt 0:00:31]} Bb7 {[%emt 0:01:52]} 8. Ne2 {[%emt 0:03:30]} Nbd7 {[%emt 0:05:22]} 9. Rb1 {[%emt 0:00:20]} Bd6 {[%emt 0:03:05]} 10. Ng3 {[%emt 0:00:39]} g6 {[%emt 0:01:08]} 11. Bd3 {[%emt 0:12:29]} Qe7 {[%emt 0:08:03]} 12. O-O {[%emt 0:00:35]} O-O {[%emt 0:01:41]} 13. Nd4 {[%emt 0:03:07]} Ne5 {[%emt 0:15:55]} 14. Bc2 {[%emt 0:10:41]} Rfb8 {[%emt 0:25:43]} 15. Ba1 {[%emt 0:05:35]} c5 {[%emt 0:04:34]} 16. bxc5 {[%emt 0:18:40]} bxc5 {[%emt 0:00:27]} 17. Ndf5 {[%emt 0:00:18]} gxf5 {[%emt 0:00:12]} 18. Nxf5 {[%emt 0:00:10]} Qe6 {[%emt 0:00:56]} 19. f4 {[%emt 0:06:20]} Nc4 {[%emt 0:02:28]} 20. Qf3 {[%emt 0:00:49]} Ne4 {[%emt 0:01:03]} 21. Bxe4 {[%emt 0:15:19]} dxe4 {[%emt 0:00:57]} 22. Qg4+ {[%emt 0:04:37]} Qg6 {[%emt 0:00:09]} 23. Qxg6+ {[%emt 0:00:09]} hxg6 {[%emt 0:00:15]} 24. Nxd6 {[%emt 0:00:06]} Nxd2 {[%emt 0:02:18]} 25. Rxb7 {[%emt 0:04:32]} Rxb7 {[%emt 0:00:09]} 26. Nxb7 {[%emt 0:00:05]} Nxf1 {[%emt 0:00:06]} 27. Kf2 {[%emt 0:00:08]} Nxh2 {[%emt 0:01:17]} 28. Nxc5 {[%emt 0:00:07]} f5 {[%emt 0:00:45]} 29. Ke2 {[%emt 0:00:55]} Kf7 {[%emt 0:00:11]} 30. a4 {[%emt 0:02:02]} Ng4 {[%emt 0:01:32]} 31. a5 {[%emt 0:04:21]} Ke7 {[%emt 0:00:09]} 32. Bd4 {[%emt 0:00:08]} Kd6 {[%emt 0:00:09]} 33. Kd2 {[%emt 0:00:18]} Kc6 {[%emt 0:00:13]} 34. Ne6 {[%emt 0:00:31]} Re8 {[%emt 0:00:09]} 0-1

[Event "US Masters 2024"]
[Site "Charlotte"]
[Date "2024.11.30"]
[Round "5.9"]
[White "Liang, Awonder"]
[Black "Prithu Gupta"]
[Result "1-0"]
[ECO "C85"]
[WhiteElo "2687"]
[BlackElo "2412"]
[Annotator "TA"]
[PlyCount "75"]
[EventDate "2024.09.23"]
[EventType "swiss"]
[EventCountry "USA"]
[SourceTitle "playchess.com"]
[Source "ChessBase"]
[SourceQuality "1"]
[TimeControl "5400+30"]

{[%evp 13,75,16,13,0,0,-3,6,12,29,32,27,23,33,0,6,0,0,-10,6,9,11,0,0,-15,0,0,3,0,0,0,0,0,44,43,63,66,66,75,89,63,58,58,56,75,122,94,88,108,167,111,243,245,240,162,2042,2023,29979,29980,29980,29981,29980,29980,5789,5622]} 1. e4 {[%emt 0:00:01]} e5 {[%emt 0:05:52]} 2. Nf3 {[%emt 0:00:01]} Nc6 {[%emt 0:00:05]} 3. Bb5 {[%emt 0:00:06]} a6 {[%emt 0:00:04]} 4. Ba4 {[%emt 0:00:06]} Nf6 {[%emt 0:00:03]} 5. O-O {[%emt 0:00:14]} Be7 {[%emt 0:00:04]} 6. Bxc6 {[%emt 0:00:58]} dxc6 {[%emt 0:00:07]} 7. d3 {[%emt 0:00:05]} Nd7 {[%emt 0:00:44]} 8. Nc3 {[%emt 0:00:08]} O-O {[%emt 0:00:06]} 9. Be3 {[%emt 0:00:04]} c5 {[%emt 0:04:11]} 10. a4 {[%emt 0:01:14] The position is equal.} f6 {[%emt 0:07:58]} 11. Nh4 {[%emt 0:02:15]} Rf7 {[%emt 0:01:58]} 12. Nf5 {[%emt 0:02:38]} (12. Qg4 {is interesting.} Nb8 13. Nf5 Kh8 14. f4) 12... Bf8 {[%emt 0:00:02]} 13. a5 {[%emt 0:00:49]} (13. Qg4 {with more complications.} Kh8 14. Qh5 Kg8 15. h3) 13... Nb8 {[%emt 0:01:13][%cal Bd7b8,Bb8c6,Bc6e5][%mdl 32]} 14. f4 {[%emt 0:02:02]} Nc6 {[%emt 0:00:42]} 15. fxe5 {[%emt 0:04:04]} Nxe5 {[%emt 0:00:56]} 16. Kh1 {[%emt 0:00:15]} Be6 {[%emt 0:10:17]} 17. Bf4 {[%emt 0:03:45]} Qd7 {[%emt 0:06:43]} 18. Bg3 {[%emt 0:01:15]} g6 {[%emt 0:04:56]} 19. Ne3 {[%emt 0:00:05]} Bd6 {[%emt 0:00:05]} 20. Ncd5 {[%emt 0:03:52]} Raf8 {[%emt 0:00:01]} 21. Bf4 {[%emt 0:12:42]} g5 {[%emt 0:08:09]} 22. Bxe5 {[%emt 0:27:09]} fxe5 {[%emt 0:00:50]} 23. Qh5 {[%emt 0:05:17]} (23. Rxf7 {simplifies} Qxf7 24. Qe2 Qg6 25. g4) 23... Bxd5 {[%emt 0:07:57]} 24. exd5 {[%emt 0:01:08]} Rxf1+ {[%emt 0:00:25]} 25. Rxf1 {[%emt 0:00:39]} Rxf1+ {[%emt 0:01:41]} 26. Nxf1 $14 {[%emt 0:00:08][%mdl 4096] Endgame. KQB-KQN} Qf5 {[%emt 0:03:55]} 27. Qe2 {[%emt 0:04:22]} Qf4 {[%emt 0:00:47]} 28. g3 {[%emt 0:02:07]} Qc1 {[%emt 0:02:30]} ({Better is} 28... Qd4) 29. b3 $16 {[%emt 0:02:50]} Qa1 {[%emt 0:01:59]} 30. Kg2 {[%emt 0:00:17]} Qxa5 {[%emt 0:00:06] [#]} (30... Qd4 $16) 31. Qh5 {[%emt 0:03:52]} ({White should try} 31. Nd2 $1 $18) 31... Qc3 {[%emt 0:09:11] This move loses the game for Black.} (31... Qe1 $16) 32. Qxg5+ $18 {[%emt 0:00:12]} Kf7 {[%emt 0:00:01]} 33. Ne3 {[%emt 0:00:30] Strongly threatening Ng4.} Qd4 (33... Qd2+ 34. Kh3 Qe2 35. Qf5+ Kg7) 34. Qf5+ {[%emt 0:00:30]} Kg7 {[%emt 0:01:42]} 35. Qd7+ {[%emt 0:01:40]} Kf8 {[%emt 0:22:40]} 36. Qc8+ {[%emt 0:00:05]} Kf7 37. Qe6+ Kf8 38. Nf5 {[%emt 0:01:00][%csl LRd4,LRd6] Weighted Error Value: White=0.08 (flawless) /Black=0.28 (precise) .  Mistake:       	White=1     	Black=4      Inaccurate:     	White=2     	Black=2      OK:         	White=8     	Black=11     Best:        	White=2     	---} 1-0

[Event "US Masters 2024"]
[Site "Charlotte"]
[Date "2024.11.30"]
[Round "5.10"]
[White "Bilych, Oleksii"]
[Black "Bok, Benjamin"]
[Result "0-1"]
[ECO "C92"]
[WhiteElo "2429"]
[BlackElo "2593"]
[Annotator "TA"]
[PlyCount "74"]
[EventDate "2024.09.23"]
[EventType "swiss"]
[EventCountry "USA"]
[SourceTitle "playchess.com"]
[Source "ChessBase"]
[SourceQuality "1"]
[TimeControl "5400+30"]

{[%evp 25,74,16,22,0,27,13,21,16,10,21,26,23,19,14,7,0,4,0,0,0,-14,-117,-121,-120,-100,-135,-140,-184,-187,-177,-197,-225,-223,-226,-219,-202,-56,-513,-578,-597,-608,-559,0,0,0,0,0,-1095,-1068,-1511,-1503]} 1. e4 {[%emt 0:00:02]} e5 {[%emt 0:09:30]} 2. Nf3 {[%emt 0:00:07]} Nc6 {[%emt 0:00:04]} 3. Bb5 {[%emt 0:00:08]} a6 {[%emt 0:00:06]} 4. Ba4 {[%emt 0:00:06]} Nf6 {[%emt 0:00:36]} 5. O-O {[%emt 0:00:11]} Be7 {[%emt 0:00:43]} 6. Re1 {[%emt 0:00:09]} b5 {[%emt 0:00:47]} 7. Bb3 {[%emt 0:00:13]} d6 {[%emt 0:00:04]} 8. c3 {[%emt 0:00:07]} O-O {[%emt 0:00:09]} 9. h3 {[%emt 0:00:09]} Bb7 {[%emt 0:01:55]} 10. d4 {[%emt 0:00:09]} Re8 {[%emt 0:00:10]} 11. Nbd2 {[%emt 0:00:11][%cal Bb1d2,Bd2f1,Bf1g3][%mdl 32]} Bf8 {[%emt 0:00:27]} 12. Bc2 {[%emt 0:00:23]} g6 {[%emt 0:03:14]} 13. a3 {[%emt 0:12:28]} Bg7 {[%emt 0:01:14]} 14. Nf1 {[%emt 0:00:12]} Na5 {[%emt 0:15:05]} 15. Ng3 {[%emt 0:00:42]} exd4 {[%emt 0:00:42]} 16. cxd4 {[%emt 0:00:47][%cal Bc3d4,Bd4d5][%mdl 32] The position is equal.} c5 {[%emt 0:00:09]} 17. d5 $1 {[%emt 0:05:08]} Nd7 {[%emt 0:00:56]} 18. Rb1 {[%emt 0:05:14]} Nc4 {[%emt 0:03:55]} 19. b3 {[%emt 0:00:53]} Nce5 {[%emt 0:04:52]} 20. Nh2 {[%emt 0:02:57] And now f4 would win.} Nb6 {[%emt 0:06:57]} 21. a4 {[%emt 0:01:30]} b4 {[%emt 0:04:32]} 22. f4 {[%emt 0:06:11]} Ned7 {[%emt 0:00:05]} 23. Nf3 {[%emt 0:00:05] Against Bd4+} (23. a5 $1 $11 {remains equal.} Bd4+ 24. Kf1 (24. Be3 $2 Bxe3+ 25. Rxe3 Nxd5 $19)) 23... a5 $17 {[%emt 0:00:20] Black is more active.} 24. f5 {[%emt 0:00:29]} c4 {[%emt 0:03:01]} 25. Bf4 {[%emt 0:08:12]} Nc5 {[%emt 0:02:08]} 26. h4 {[%emt 0:02:12]} cxb3 {[%emt 0:07:42]} 27. Bxb3 {[%emt 0:00:06]} Nxb3 {[%emt 0:04:45]} 28. Qxb3 {[%emt 0:00:08]} Qd7 {[%emt 0:00:19]} 29. Ra1 {[%emt 0:02:23]} Rac8 {[%emt 0:07:53]} 30. h5 {[%emt 0:02:39]} gxf5 {[%emt 0:13:09]} ({Black should play} 30... Rc3 $19 31. Qd1 Ba6) 31. h6 $2 {[%emt 0:03:59][%mdl 8192]} Bxa1 $19 {[%emt 0:03:36]} 32. Rxa1 {[%emt 0:00:05] [#] Nh5 is the strong threat.} fxe4 {[%emt 0:00:43]} 33. Nh5 {[%emt 0:00:15]} Qf5 {[%emt 0:01:37] Dodges Nf6+} (33... exf3 $2 {is the wrong capture.} 34. Nf6+ Kf8 35. Nxd7+ Nxd7 36. Bxd6+ (36. gxf3 Ne5 $18) 36... Kg8 37. Qxf3 $18) (33... Nxd5 $19 34. Nd4 Kh8) 34. Nh4 $11 {[%emt 0:01:01]} Qxh5 {[%emt 0:01:51]} 35. Qg3+ {[%emt 0:00:03]} Kf8 {[%emt 0:02:31]} 36. Qg7+ $2 {[%emt 0:00:06][%mdl 8192]} (36. Bxd6+ $11 Re7 37. Rf1) 36... Ke7 $19 {[%emt 0:00:07] [#] White must now prevent ...Rg8.} 37. Bg5+ {[%emt 0:00:01]} Kd7 {[%emt 0:00:29] Weighted Error Value: White=0.89/Black=0.35.  Loses game:     	White=2     	---        Missed win:     	---       	Black=1      Mistake:       	White=1     	Black=1      Inaccurate:     	White=3     	Black=1      OK:         	White=5     	Black=13     Best:        	---       	Black=2      Strong:       	White=1     	---} 0-1

[Event "US Masters 2024"]
[Site "Charlotte"]
[Date "2024.11.30"]
[Round "5.11"]
[White "Chasin, Nico"]
[Black "Zhou, Jianchao"]
[Result "0-1"]
[ECO "B92"]
[WhiteElo "2412"]
[BlackElo "2581"]
[Annotator "TA"]
[PlyCount "64"]
[EventDate "2024.09.23"]
[EventType "swiss"]
[EventCountry "USA"]
[SourceTitle "playchess.com"]
[Source "ChessBase"]
[SourceQuality "1"]
[TimeControl "5400+30"]

{[%evp 17,64,0,4,-8,0,0,0,0,0,0,0,0,10,-6,0,-28,0,0,0,-20,0,0,0,0,0,-19,-29,-69,-20,-40,-37,-109,-104,-126,-114,-121,-111,-198,-182,-219,-214,-316,-324,-797,-788,-1341,-1280,-29979,-29979]} 1. e4 {[%emt 0:09:52]} c5 {[%emt 0:00:11]} 2. Nf3 {[%emt 0:00:12]} d6 {[%emt 0:00:03]} 3. d4 {[%emt 0:00:04]} cxd4 {[%emt 0:00:04]} 4. Nxd4 {[%emt 0:00:04]} Nf6 {[%emt 0:00:03]} 5. Nc3 {[%emt 0:00:04]} a6 {[%emt 0:00:03]} 6. Be2 {[%emt 0:00:14]} e5 {[%emt 0:00:40]} 7. Nb3 {[%emt 0:00:32]} Be7 {[%emt 0:00:04]} 8. O-O {[%emt 0:00:06]} O-O {[%emt 0:00:06]} 9. Qd3 {[%emt 0:00:02]} Be6 {[%emt 0:00:18]} 10. Nd5 {[%emt 0:00:23]} Nxd5 {[%emt 0:01:18]} 11. exd5 {[%emt 0:01:05]} Bc8 {[%emt 0:00:03]} 12. a4 {[%emt 0:00:42] The position is equal.} a5 {[%emt 0:01:23]} 13. f4 {[%emt 0:05:08]} Nd7 {[%emt 0:00:41]} 14. fxe5 {[%emt 0:08:42]} Nxe5 {[%emt 0:00:48]} 15. Qg3 {[%emt 0:00:11]} Bh4 {[%emt 0:01:25]} 16. Qc3 {[%emt 0:00:47]} Bd7 {[%emt 0:08:54]} 17. Be3 {[%emt 0:03:35]} Bg5 {[%emt 0:03:47]} 18. Qd2 {[%emt 0:07:38]} h6 {[%emt 0:02:40]} 19. Nd4 {[%emt 0:00:25]} Bxe3+ {[%emt 0:04:10]} 20. Qxe3 {[%emt 0:02:05]} Qb6 {[%emt 0:00:50][%cal Of8e8]} 21. Ra3 {[%emt 0:09:18]} Rae8 {[%emt 0:03:56][%cal Oe5g4] aiming for ...Ng4!} 22. Qf2 {[%emt 0:01:32]} Qc5 {[%emt 0:06:34]} (22... Qxb2 $15 23. Rb3 Qa2) 23. Rg3 {[%emt 0:12:24]} (23. Nf5 {simplifies} Qxf2+ 24. Rxf2 Bxf5 25. Rxf5 Rc8 26. c3) 23... Qxd5 {[%emt 0:08:52][%cal Of7f5]} 24. Bb5 {[%emt 0:03:18]} (24. Rd1 $15 Qc5 (24... Bxa4 $2 {too greedy.} 25. Rxg7+ Kh8 26. Qf6 $18) 25. Rc3) 24... Ng4 $17 {[%emt 0:04:38]} 25. Qd2 {[%emt 0:02:54] [#]} Bxb5 {[%emt 0:02:06]} 26. axb5 {[%emt 0:01:54]} Re4 {[%emt 0:00:25]} 27. c3 {[%emt 0:00:55] [#]} (27. Nb3 $17 Qe5 (27... Qxb5 28. Qxa5 Qc6 29. Qf5 $17) 28. Qc3) 27... Rfe8 $1 $36 {[%emt 0:02:29][%mdl 2048] Black has strong initiative.} 28. h3 {[%emt 0:01:49]} Ne3 {[%emt 0:01:57]} 29. Rff3 {[%emt 0:04:27]} (29. Ra1 $142) 29... Qe5 {[%emt 0:01:03]} 30. Kf2 $2 {[%emt 0:00:18]} (30. Qf2 Nf1 (30... Nd1 $2 31. Qc2 $19) 31. Qxf1) 30... Nc4 {[%emt 0:03:26]} 31. Qd1 {[%emt 0:03:59]} Re1 {[%emt 0:01:55]} 32. Qd3 {[%emt 0:01:41]} Nxb2 {[%emt 0:00:15] Weighted Error Value: White=0.82/Black=0.04 (flawless) .  Mistake:       	White=4     	Black=1      Inaccurate:     	White=3     	Black=1      OK:         	White=4     	Black=10     Best:        	---       	Black=3      Strong:       	---       	Black=1} 0-1

[Event "US Masters 2024"]
[Site "Charlotte"]
[Date "2024.11.30"]
[Round "5.12"]
[White "Matviishen, Viktor"]
[Black "Shlyakhtenko, Robert"]
[Result "1-0"]
[ECO "D52"]
[WhiteElo "2566"]
[BlackElo "2422"]
[Annotator "TA"]
[PlyCount "97"]
[EventDate "2024.09.23"]
[EventType "swiss"]
[EventCountry "USA"]
[SourceTitle "playchess.com"]
[Source "ChessBase"]
[SourceQuality "1"]
[TimeControl "5400+30"]

{[%evp 10,97,29,29,27,25,39,9,18,2,0,0,0,0,13,0,0,0,77,79,84,66,63,68,62,60,59,55,84,85,92,87,88,95,83,66,81,90,70,65,89,53,117,119,117,94,110,94,103,110,111,72,94,84,108,104,164,68,53,42,91,82,95,120,89,95,417,422,414,383,562,556,557,547,744,720,649,612,29988,29989,29989,29990,29994,29995,29995,29992,29996,29997,29997,29998]} 1. d4 {[%emt 0:10:00]} d5 {[%emt 0:00:06]} 2. c4 {[%emt 0:00:10]} c6 {[%emt 0:00:03]} 3. Nf3 {[%emt 0:00:08]} Nf6 {[%emt 0:00:06]} 4. Nc3 {[%emt 0:00:34]} e6 {[%emt 0:00:15]} 5. Bg5 {[%emt 0:00:22]} Nbd7 {[%emt 0:00:12]} 6. e3 {[%emt 0:00:09]} h6 {[%emt 0:00:23]} 7. Bf4 {[%emt 0:01:20]} Be7 {[%emt 0:02:00]} 8. a3 {[%emt 0:04:02]} O-O {[%emt 0:05:11] The position is equal.} 9. g4 {[%emt 0:00:45]} Ne4 {[%emt 0:05:34]} (9... Nxg4 10. Rg1 h5 11. h3 $14) 10. h4 {[%emt 0:00:59][%cal Og4g5]} e5 {[%emt 0:04:47]} 11. dxe5 {[%emt 0:00:54]} Nxc3 {[%emt 0:02:37]} 12. bxc3 {[%emt 0:00:05]} Qa5 {[%emt 0:00:09]} 13. Qc2 {[%emt 0:01:07]} Nc5 {[%emt 0:04:15] [#]} (13... Nb6 $11 {keeps the balance.}) 14. Nd4 $1 $16 {[%emt 0:06:12]} Ne4 {[%emt 0:25:21]} (14... Bxg4 15. Rg1 h5 16. f3 $11) 15. cxd5 {[%emt 0:18:04]} cxd5 {[%emt 0:08:09]} 16. f3 {[%emt 0:00:12]} Qxc3+ {[%emt 0:00:19]} (16... Nxc3 $2 {perishes.} 17. Nb3 Qc7 18. e6 $18) 17. Qxc3 {[%emt 0:00:04]} Nxc3 {[%emt 0:00:07][%cal Be4c3,Bc3a4,Ba4c5][%mdl 32]} 18. h5 {[%emt 0:06:45]} Bd7 {[%emt 0:02:21]} 19. Rg1 {[%emt 0:01:20]} Kh8 {[%emt 0:10:36]} 20. g5 {[%emt 0:06:31]} hxg5 {[%emt 0:04:28]} 21. Bxg5 {[%emt 0:00:43]} Rfe8 {[%emt 0:03:01]} 22. Kd2 {[%emt 0:14:14]} Na4 {[%emt 0:01:48]} 23. Bxe7 {[%emt 0:08:37]} Rxe7 {[%emt 0:00:05]} 24. f4 {[%emt 0:00:04]} Nc5 {[%emt 0:06:11]} 25. Bg2 {[%emt 0:02:14]} Rd8 {[%emt 0:01:14]} (25... f6 $14) 26. Rac1 {[%emt 0:00:10]} ({Don't do} 26. Bxd5 Be6 27. Bxe6 Nxe6 $14) 26... b6 {[%emt 0:00:18]} 27. Bf3 {[%emt 0:04:37]} Ba4 {[%emt 0:03:58]} 28. Rc3 {[%emt 0:03:50]} Rc7 {[%emt 0:02:31]} 29. Ke2 {[%emt 0:00:15]} Rdd7 {[%emt 0:02:37]} 30. Rgc1 {[%emt 0:02:51]} Rd8 {[%emt 0:01:52]} 31. Kf1 {[%emt 0:02:15]} Kg8 {[%emt 0:01:40]} 32. Kg2 {[%emt 0:00:42]} Rcd7 {[%emt 0:01:28]} (32... Kh7 $16 33. Bg4 Bd7) 33. Rxc5 {[%emt 0:05:09]} (33. Kh3 $18) 33... bxc5 $14 {[%emt 0:00:03]} 34. Rxc5 {[%emt 0:00:02] [#] Ra5 would now be deadly.} a6 {[%emt 0:01:05]} (34... Rb7 $14) 35. f5 $16 {[%emt 0:00:41][%mdl 1024] White has strong compensation.} Bb5 {[%emt 0:01:02]} 36. e6 {[%emt 0:00:33]} Rd6 {[%emt 0:00:04]} 37. Kg3 {[%emt 0:00:58] White is much more active.} Kf8 $2 {[%emt 0:02:28][%mdl 8192] A mistake that costs the game.} (37... Be8 $16 {is tougher.} 38. Rc7 Ra8) 38. Rc7 $18 {[%emt 0:00:50]} fxe6 {[%emt 0:00:24]} 39. Nxe6+ {[%emt 0:00:03]} Rxe6 {[%emt 0:00:39]} (39... Kg8 $142 40. Rxg7+ Kh8) 40. fxe6 {[%emt 0:00:03][%mdl 4096] Endgame. KRB-KRB} Rd6 {[%emt 0:00:02]} 41. Bg4 {[%emt 0:01:33]} d4 {[%emt 0:00:17]} 42. exd4 {[%emt 0:00:27]} Rxd4 {[%emt 0:00:02]} 43. Bf5 {[%emt 0:00:13] White wants to mate with Bg6.} Ra4 {[%emt 0:01:38]} 44. Bg6 {[%emt 0:00:13] White mates.} Rxa3+ {[%emt 0:00:28]} 45. Kf4 {[%emt 0:00:02]} Ra4+ {[%emt 0:00:33]} 46. Ke5 {[%emt 0:00:13]} Be8 {[%emt 0:00:22]} 47. e7+ {[%emt 0:00:10]} Kg8 {[%emt 0:00:03]} 48. Rc8 {[%emt 0:00:14][%cal Rc8e8]} Ra5+ {[%emt 0:00:09]} 49. Kd6 {[%emt 0:00:06] Weighted Error Value: White=0.07 (flawless) /Black=0.48.  Loses game:     	---       	Black=1      Mistake:       	White=1     	Black=5      Inaccurate:     	White=3     	Black=2      OK:         	White=15    	Black=14     Best:        	White=1     	---        Strong:       	White=1     	---} 1-0

[Event "US Masters 2024"]
[Site "Charlotte"]
[Date "2024.11.30"]
[Round "5.13"]
[White "Lohia, Sohum"]
[Black "Kevlishvili, Robby"]
[Result "0-1"]
[ECO "C95"]
[WhiteElo "2391"]
[BlackElo "2556"]
[Annotator "TA"]
[PlyCount "80"]
[EventDate "2024.09.23"]
[EventType "swiss"]
[EventCountry "USA"]
[SourceTitle "playchess.com"]
[Source "ChessBase"]
[SourceQuality "1"]
[TimeControl "5400+30"]

{[%evp 26,80,26,36,40,33,43,37,39,17,12,8,-5,8,21,10,45,36,47,51,38,45,52,53,95,100,96,0,43,16,11,7,9,8,14,0,0,-10,-26,-74,-73,-62,-57,-62,-55,-386,-387,-270,-389,-397,-379,-759,-759,-720,-733,-744,-720]} 1. e4 {[%emt 0:00:04]} e5 {[%emt 0:05:01]} 2. Nf3 {[%emt 0:00:13]} Nc6 {[%emt 0:00:04]} 3. Bb5 {[%emt 0:00:48]} a6 {[%emt 0:00:17]} 4. Ba4 {[%emt 0:00:06]} Nf6 {[%emt 0:00:06]} 5. O-O {[%emt 0:00:08]} Be7 {[%emt 0:00:05]} 6. Re1 {[%emt 0:00:07]} b5 {[%emt 0:00:06]} 7. Bb3 {[%emt 0:00:04]} d6 {[%emt 0:00:05]} 8. c3 {[%emt 0:00:13]} O-O {[%emt 0:00:05]} 9. h3 {[%emt 0:00:08]} Nb8 {[%emt 0:00:06]} 10. d4 {[%emt 0:00:27]} Nbd7 {[%emt 0:00:19]} 11. Nbd2 {[%emt 0:00:12]} Bb7 {[%emt 0:00:16]} 12. Bc2 {[%emt 0:00:15]} Re8 {[%emt 0:00:50]} 13. Nf1 {[%emt 0:00:17]} Bf8 {[%emt 0:00:15]} 14. Ng3 {[%emt 0:00:26]} a5 {[%emt 0:00:30]} 15. a4 {[%emt 0:09:45]} b4 {[%emt 0:00:41]} 16. cxb4 {[%emt 0:08:33]} axb4 {[%emt 0:01:30] White is slightly better.} 17. b3 {[%emt 0:01:00]} exd4 {[%emt 0:04:00]} 18. Qxd4 {[%emt 0:08:39]} c5 {[%emt 0:03:35]} 19. Qd2 {[%emt 0:06:47]} Ne5 {[%emt 0:05:45]} 20. Nxe5 {[%emt 0:01:11]} Rxe5 {[%emt 0:05:42]} 21. Bb2 {[%emt 0:01:41]} Re6 {[%emt 0:00:49]} 22. Rad1 {[%emt 0:03:46]} Qc7 {[%emt 0:09:48]} 23. Bd3 {[%emt 0:02:04]} Rae8 {[%emt 0:01:53][%cal Rf6e4]} 24. Bb5 {[%emt 0:08:26] [#] Hoping for Bxf6.} Nd7 {[%emt 0:07:39][%cal Oe8a8,Bf6d7,Bd7e5,Be5g6][%mdl 32]} 25. Qf4 {[%emt 0:07:20]} Qc8 {[%emt 0:11:06][%cal Od6d5]} 26. Re3 {[%emt 0:32:47]} (26. Nh5 $16) 26... Ba6 $14 {[%emt 0:02:16]} 27. Nf5 {[%emt 0:06:00][%cal Ob2g7] Threatens to win with Bxg7!} Bxb5 {[%emt 0:03:18]} 28. axb5 {[%emt 0:00:07][%cal Ob2g7] [#] aiming for Bxg7!} Ne5 $1 {[%emt 0:00:31]} 29. Rg3 {[%emt 0:02:09]} Ng6 {[%emt 0:00:55]} 30. Qd2 {[%emt 0:00:14]} Qb7 {[%emt 0:01:29]} 31. Rd3 {[%emt 0:00:37]} Rxe4 {[%emt 0:01:05] And now ...Re2 would win.} 32. Nxd6 {[%emt 0:00:57]} (32. Bxg7 $11 Bxg7 33. Nxd6) 32... Bxd6 $17 {[%emt 0:00:17]} 33. Rxd6 {[%emt 0:00:01]} Qxb5 {[%emt 0:01:39]} 34. Qd5 $1 {[%emt 0:00:44]} Qe2 {[%emt 0:02:03]} 35. Rd7 $2 {[%emt 0:00:51][%mdl 8192] This costs White the game.} Qxb2 $19 {[%emt 0:04:14]} 36. Qxf7+ {[%emt 0:00:37]} Kh8 {[%emt 0:00:05]} 37. Rd8 {[%emt 0:00:43]} Qe5 {[%emt 0:00:38] ...Re1+ is the strong threat.} 38. f4 $2 {[%emt 0:00:29]} (38. g3 Qe7 39. Qxe7 R4xe7 40. R1d5) 38... Re1+ {[%emt 0:00:20] Black is clearly winning.} (38... Rxf4 $2 {perishes.} 39. Rxe8+ $18) (38... Nxf4 39. Qf8+ Rxf8 40. Rxf8#) 39. Kh2 {[%emt 0:00:04]} Qxf4+ {[%emt 0:00:15]} ({Not} 39... Nxf4 40. Qf8+ Rxf8 41. Rxf8#) 40. Qxf4 {[%emt 0:00:04]} Nxf4 {[%emt 0:00:04] Weighted Error Value: White=0.56/Black=0.04 (flawless) .  Loses game:     	White=1     	---        Mistake:       	White=3     	---        Inaccurate:     	White=1     	Black=2      OK:         	White=9     	Black=9      Best:        	White=3     	Black=4      Strong:       	White=1     	Black=1} 0-1